lending/lending_fUSD_20250121
["ID","MTS","AMOUNT","RATE_DAILY","PERIOD"]
[349891632,1737481842374,-856.63,0.00019178,2]
[349891634,1737481842383,-501.65687519,0.00019178,2]
[349891635,1737481842392,-578.87,0.00019178,2]
[349891636,1737481842402,-500.0,0.00019178,2]
[349891638,1737481842412,-500.77836531,0.00019178,2]
[349891640,1737481842422,-500.0,0.00019178,2]
[349891641,1737481842431,-504.68628447,0.00019178,2]
[349891643,1737481842440,-500.0,0.00019178,2]
[349891644,1737481842450,-500.0,0.00019178,2]
[349891646,1737481842460,-503.70640026,0.00019178,2]
[349891647,1737481842471,-500.0,0.00019178,2]
[349891649,1737481842480,-500.0,0.00019178,2]
[349891650,1737481842490,-561.89663367,0.00019178,2]
[349891652,1737481842499,-500.0,0.00019178,2]
[349891653,1737481842509,-500.0,0.00019178,2]
[349891656,1737481842519,-500.0,0.00019178,2]
[349891658,1737481842528,-500.0,0.00019178,2]
[349891661,1737481842538,-500.0,0.00019178,2]
[349891664,1737481842549,-500.0,0.00019178,2]
[349891665,1737481842559,-500.0,0.00019178,2]
[349891667,1737481842568,-500.0,0.00019178,2]
[349891670,1737481842579,-500.0,0.00019178,2]
[349891671,1737481842589,-1804.88,0.00019178,2]
[349891673,1737481842599,-503.3273453,0.00019178,2]
[349891674,1737481842608,-1825.15,0.00019178,2]
[349891675,1737481842619,-1270.88,0.00019178,2]
[349891676,1737481842629,-500.0,0.00019178,2]
[349891677,1737481842638,-500.0,0.00019178,2]
[349891678,1737481842648,-644.97,0.00019178,2]
[349891679,1737481842658,-500.0,0.00019178,2]
[349891680,1737481842668,-500.0,0.00019178,2]
[349891681,1737481842679,-500.0,0.00019178,2]
[349891682,1737481842692,-701.52,0.00019178,2]
[349891683,1737481842701,-500.0,0.00019178,2]
[349891684,1737481842711,-211.87607278,0.0001921,2]
[349891685,1737481842722,-3409.09926398,0.00019212,2]
[349891686,1737481842732,-1000.0,0.00019256,2]
[349891687,1737481842742,-3000.0,0.0001926,2]
[349891688,1737481842752,-2287.35429341,0.00019314,2]
[349891689,1737481842763,-211.87607278,0.00019314,2]
[349891690,1737481842774,-666.92404715,0.00019352,2]
[349891691,1737481842784,-1000.0,0.000194,2]
[349891692,1737481842795,-1000.0,0.000194,2]
[349891693,1737481842805,-1000.0,0.000194,2]
[349891694,1737481842816,-211.87607278,0.00019417,2]
[349891695,1737481842826,-319.87778702,0.00019442,2]
[349891696,1737481842838,-500.0,0.00019451,2]
[349891697,1737481842847,-4012.9,0.00019451,2]
[349891698,1737481842857,-1002.64,0.00019451,2]
[349891699,1737481842867,-4072.09,0.00019451,2]
[349891700,1737481842877,-500.0,0.00019451,2]
[349891701,1737481842887,-648.07,0.00019451,2]
[349891702,1737481842897,-547.32,0.00019451,2]
[349891703,1737481842907,-500.0,0.00019451,2]
[349891704,1737481842917,-804.02,0.00019451,2]
[349891705,1737481842926,-534.09,0.00019451,2]
[349891706,1737481842936,-620.7,0.00019451,2]
[349891707,1737481842945,-1154.97,0.00019451,2]
[349891708,1737481842955,-500.0,0.00019451,2]
[349891709,1737481842964,-669.6,0.00019451,2]
[349891710,1737481842974,-854.14,0.00019451,2]
[349891712,1737481842985,-502.54,0.00019451,2]
[349891714,1737481842995,-1320.45,0.00019451,2]
[349891716,1737481843005,-500.0,0.00019451,2]
[349891718,1737481843015,-951.01,0.00019451,2]
[349891720,1737481843025,-955.19,0.00019451,2]
[349891722,1737481843034,-526.20623226,0.00019451,2]
[349891724,1737481843044,-1101.88,0.00019451,2]
[349891726,1737481843054,-976.3,0.00019451,2]
[349891728,1737481843064,-1050.06,0.00019451,2]
[349891729,1737481843074,-500.0,0.00019451,2]
[349891730,1737481843084,-964.72,0.00019451,2]
[349891731,1737481843098,-500.0,0.00019451,2]
[349891732,1737481843108,-202.5731178,0.00019452,2]
[349891733,1737481843118,-553751.35259396,0.00019452,2]
[349891734,1737481843129,-500.0,0.00019452,2]
[349891735,1737481843139,-500.0,0.00019452,2]
[349891736,1737481843149,-500.94,0.00019452,2]
[349891737,1737481843159,-500.0,0.00019452,2]
[349891738,1737481843168,-500.0,0.00019452,2]
[349891739,1737481843178,-500.0,0.00019452,2]
[349891740,1737481843188,-500.0,0.00019452,2]
[349891741,1737481843198,-500.0,0.00019452,2]
[349891742,1737481843208,-500.0,0.00019452,2]
[349891743,1737481843218,-500.0,0.00019452,2]
[349891744,1737481843228,-500.0,0.00019452,2]
[349891745,1737481843238,-500.0,0.00019452,2]
[349891746,1737481843247,-500.0,0.00019452,2]
[349891747,1737481843257,-500.0,0.00019452,2]
[349891748,1737481843267,-338.11809925,0.00019452,2]
[349891749,1737481843276,-500.0,0.00019452,2]
[349891750,1737481843286,-500.0,0.00019452,2]
[349891751,1737481843296,-500.0,0.00019452,2]
[349891752,1737481843306,-500.0,0.00019452,2]
[349891753,1737481843317,-500.0,0.00019452,2]
[349891754,1737481843326,-500.0,0.00019452,2]
[349891755,1737481843336,-500.0,0.00019452,2]
[349891756,1737481843346,-500.0,0.00019452,2]
[349891757,1737481843356,-500.0,0.00019452,2]
[349891758,1737481843366,-500.0,0.00019452,2]
[349891759,1737481843375,-214.85617196,0.00019452,2]
[349891760,1737481843386,-510.01,0.00019452,2]
[349891761,1737481843396,-500.0,0.00019452,2]
[349891762,1737481843406,-500.0,0.00019452,2]
[349891763,1737481843415,-534.82,0.00019452,2]
[349891764,1737481843425,-500.0,0.00019452,2]
[349891765,1737481843434,-500.0,0.00019452,2]
[349891766,1737481843444,-441.39807894,0.00019452,2]
[349891767,1737481843453,-500.0,0.00019452,2]
[349891768,1737481843463,-500.0,0.00019452,2]
[349891769,1737481843474,-500.0,0.00019452,2]
[349891770,1737481843483,-500.0,0.00019452,2]
[349891771,1737481843493,-500.0,0.00019452,2]
[349891772,1737481843503,-541.823232,0.00019452,2]
[349891773,1737481843512,-308.63395789,0.00019452,2]
[349891774,1737481843522,-500.0,0.00019452,2]
[349891775,1737481843532,-500.0,0.00019452,2]
[349891776,1737481843542,-435.496355,0.00019452,2]
[349891777,1737481843552,-578.87210708,0.00019452,2]
[349891778,1737481843562,-500.0,0.00019452,2]
[349891779,1737481843573,-500.0,0.00019452,2]
[349891780,1737481843583,-500.0,0.00019452,2]
[349891781,1737481843593,-448.62,0.00019452,2]
[349891782,1737481843603,-349.96070651,0.00019452,2]
[349891783,1737481843614,-500.0,0.00019452,2]
[349891784,1737481843624,-500.0,0.00019452,2]
[349891785,1737481843633,-538.36,0.00019452,2]
[349891786,1737481843644,-500.0,0.00019452,2]
[349891787,1737481843654,-500.0,0.00019452,2]
[349891788,1737481843664,-274.59498856,0.00019452,2]
[349891789,1737481843674,-500.0,0.00019452,2]
[349891790,1737481843685,-500.0,0.00019452,2]
[349891791,1737481843695,-500.0,0.00019452,2]
[349891792,1737481843704,-500.0,0.00019452,2]
[349891793,1737481843715,-500.0,0.00019452,2]
[349891794,1737481843725,-500.0,0.00019452,2]
[349891795,1737481843736,-500.0,0.00019452,2]
[349891796,1737481843746,-500.0,0.00019452,2]
[349891797,1737481843755,-500.0,0.00019452,2]
[349891798,1737481843768,-500.0,0.00019452,2]
[349891799,1737481843778,-500.0,0.00019452,2]
[349891800,1737481843788,-500.0,0.00019452,2]
[349891801,1737481843798,-500.0,0.00019452,2]
[349891802,1737481843807,-500.0,0.00019452,2]
[349891803,1737481843817,-500.0,0.00019452,2]
[349891804,1737481843827,-500.0,0.00019452,2]
[349891805,1737481843839,-500.0,0.00019452,2]
[349891806,1737481843850,-500.0,0.00019452,2]
[349891807,1737481843860,-500.0,0.00019452,2]
[349891808,1737481843870,-500.0,0.00019452,2]
[349891809,1737481843880,-339.56182308,0.00019452,2]
[349891810,1737481843890,-500.0,0.00019452,2]
[349891811,1737481843900,-500.0,0.00019452,2]
[349891812,1737481843911,-500.0,0.00019452,2]
[349891813,1737481843920,-500.0,0.00019452,2]
[349891814,1737481843931,-500.0,0.00019452,2]
[349891815,1737481843941,-500.0,0.00019452,2]
[349891816,1737481843950,-554.04,0.00019452,2]
[349891817,1737481843960,-500.0,0.00019452,2]
[349891818,1737481843970,-523.71,0.00019452,2]
[349891819,1737481843980,-500.0,0.00019452,2]
[349891820,1737481843989,-500.0,0.00019452,2]
[349891821,1737481843999,-500.0,0.00019452,2]
[349891822,1737481844009,-500.0,0.00019452,2]
[349891823,1737481844019,-500.0,0.00019452,2]
[349891824,1737481844030,-500.0,0.00019452,2]
[349891825,1737481844039,-591.31,0.00019452,2]
[349891826,1737481844050,-500.0,0.00019452,2]
[349891827,1737481844060,-968.82,0.00019452,2]
[349891828,1737481844070,-501.4238467,0.00019452,2]
[349891829,1737481844080,-883.82,0.00019452,2]
[349891830,1737481844091,-500.0,0.00019452,2]
[349891831,1737481844101,-574.82,0.00019452,2]
[349891832,1737481844111,-872.29,0.00019452,2]
[349891833,1737481844120,-189.74836855,0.00019452,2]
[349891834,1737481844129,-591.16,0.00019452,2]
[349891835,1737481844139,-1949.9,0.00019452,2]
[349891836,1737481844149,-500.0,0.00019452,2]
[349891837,1737481844159,-500.0,0.00019452,2]
[349891838,1737481844169,-2083.72,0.00019452,2]
[349891839,1737481844179,-1234.26,0.00019452,2]
[349891840,1737481844188,-505.10731626,0.00019452,2]
[349891841,1737481844198,-850.27,0.00019452,2]
[349891842,1737481844208,-638.37,0.00019452,2]
[349891843,1737481844217,-966.51,0.00019452,2]
[349891844,1737481844228,-500.0,0.00019452,2]
[349891845,1737481844238,-1807.38,0.00019452,2]
[349891846,1737481844248,-512.73176286,0.00019452,2]
[349891847,1737481844258,-1229.07,0.00019452,2]
[349891848,1737481844268,-983.11,0.00019452,2]
[349891849,1737481844277,-1007.18,0.00019452,2]
[349891850,1737481844288,-500.0,0.00019452,2]
[349891851,1737481844298,-499.999999,0.00019452,2]
[349891852,1737481844307,-506.37398102,0.00019452,2]
[349891853,1737481844317,-646.36,0.00019452,2]
[349891854,1737481844327,-580.32846184,0.00019452,2]
[349891855,1737481844336,-500.0,0.00019452,2]
[349891856,1737481844347,-552.58,0.00019452,2]
[349891857,1737481844356,-500.0,0.00019452,2]
[349891858,1737481844366,-500.0,0.00019452,2]
[349891859,1737481844375,-1758.1,0.00019452,2]
[349891860,1737481844385,-758.32,0.00019452,2]
[349891861,1737481844394,-264.34926038,0.00019452,2]
[349891862,1737481844405,-500.0,0.00019452,2]
[349891863,1737481844414,-500.0,0.00019452,2]
[349891864,1737481844424,-500.0,0.00019452,2]
[349891865,1737481844434,-2087.54,0.00019452,2]
[349891866,1737481844443,-552.04,0.00019452,2]
[349891867,1737481844455,-500.0,0.00019452,2]
[349891868,1737481844466,-500.0,0.00019452,2]
[349891869,1737481844476,-500.0,0.00019452,2]
[349891870,1737481844486,-500.0,0.00019452,2]
[349891871,1737481844496,-814.49,0.00019452,2]
[349891872,1737481844506,-692.57,0.00019452,2]
[349891873,1737481844516,-425.75,0.00019452,2]
[349891874,1737481844526,-500.0,0.00019452,2]
[349891875,1737481844536,-2087.16,0.00019452,2]
[349891876,1737481844547,-863.83,0.00019452,2]
[349891877,1737481844557,-500.0,0.00019452,2]
[349891878,1737481844567,-777.16,0.00019452,2]
[349891879,1737481844576,-500.0,0.00019452,2]
[349891880,1737481844586,-620.39,0.00019452,2]
[349891881,1737481844596,-892.77,0.00019452,2]
[349891882,1737481844606,-1030.47,0.00019452,2]
[349891883,1737481844616,-573.28,0.00019452,2]
[349891884,1737481844627,-1860.97,0.00019452,2]
[349891885,1737481844638,-1428.91,0.00019452,2]
[349891886,1737481844648,-1602.47,0.00019452,2]
[349891887,1737481844658,-681.59,0.00019452,2]
[349891888,1737481844668,-992.99,0.00019452,2]
[349891889,1737481844679,-500.0,0.00019452,2]
[349891890,1737481844693,-500.0,0.00019452,2]
[349891891,1737481844702,-554.72,0.00019452,2]
[349891892,1737481844712,-860.54,0.00019452,2]
[349891893,1737481844723,-404.77501739,0.00019452,2]
[349891894,1737481844782,-500.0,0.00019452,2]
[349891895,1737481844792,-500.0,0.00019452,2]
[349891896,1737481844801,-939.91,0.00019452,2]
[349891897,1737481844811,-2768.13,0.00019452,2]
[349891898,1737481844821,-1656.07,0.00019452,2]
[349891899,1737481844831,-630.78,0.00019452,2]
[349891900,1737481844842,-500.0,0.00019452,2]
[349891901,1737481844853,-500.0,0.00019452,2]
[349891902,1737481844863,-500.0,0.00019452,2]
[349891903,1737481844873,-500.0,0.00019452,2]
[349891904,1737481844883,-1879.4,0.00019452,2]
[349891905,1737481844893,-500.0,0.00019452,2]
[349891906,1737481844903,-1189.73,0.00019452,2]
[349891907,1737481844913,-1344.96,0.00019452,2]
[349891908,1737481844922,-1273.53,0.00019452,2]
[349891909,1737481844931,-915.46,0.00019452,2]
[349891910,1737481844941,-611.0,0.00019452,2]
[349891911,1737481844950,-500.0,0.00019452,2]
[349891912,1737481844960,-500.0,0.00019452,2]
[349891913,1737481844969,-1205.37,0.00019452,2]
[349891914,1737481844979,-815.77,0.00019452,2]
[349891915,1737481844990,-500.0,0.00019452,2]
[349891916,1737481845000,-500.0,0.00019452,2]
[349891917,1737481845010,-1058.59,0.00019452,2]
[349891918,1737481845020,-903.51,0.00019452,2]
[349891919,1737481845030,-500.0,0.00019452,2]
[349891920,1737481845039,-500.0,0.00019452,2]
[349891921,1737481845050,-1120.5,0.00019452,2]
[349891922,1737481845059,-1815.36,0.00019452,2]
[349891923,1737481845069,-500.0,0.00019452,2]
[349891924,1737481845079,-2428.83,0.00019452,2]
[349891925,1737481845088,-500.0,0.00019452,2]
[349891926,1737481845099,-500.0,0.00019452,2]
[349891927,1737481845108,-2074.92,0.00019452,2]
[349891928,1737481845118,-4234.98,0.00019452,2]
[349891929,1737481845128,-500.0,0.00019452,2]
[349891930,1737481845138,-500.0,0.00019452,2]
[349891931,1737481845147,-500.0,0.00019452,2]
[349891932,1737481845156,-758.4,0.00019452,2]
[349891933,1737481845166,-885.5,0.00019452,2]
[349891934,1737481845176,-500.0,0.00019452,2]
[349891935,1737481845186,-969.51,0.00019452,2]
[349891936,1737481845196,-511.93208304,0.00019452,2]
[349891938,1737481845206,-500.0,0.00019452,2]
[349891940,1737481845215,-500.0,0.00019452,2]
[349891941,1737481845224,-500.0,0.00019452,2]
[349891942,1737481845233,-500.0,0.00019452,2]
[349891943,1737481845243,-678.61,0.00019452,2]
[349891944,1737481845253,-1307.89,0.00019452,2]
[349891946,1737481845263,-500.0,0.00019452,2]
[349891947,1737481845272,-500.0,0.00019452,2]
[349891948,1737481845282,-500.0,0.00019452,2]
[349891949,1737481845291,-493.0792018,0.00019452,2]
[349891950,1737481845300,-655.48,0.00019452,2]
[349891951,1737481845310,-3654.26,0.00019452,2]
[349891952,1737481845320,-1432.91,0.00019452,2]
[349891953,1737481845329,-500.0,0.00019452,2]
[349891954,1737481845339,-500.0,0.00019452,2]
[349891955,1737481845351,-711.72,0.00019452,2]
[349891956,1737481845361,-1306.74,0.00019452,2]
[349891957,1737481845371,-500.0,0.00019452,2]
[349891958,1737481845380,-507.94758113,0.00019452,2]
[349891959,1737481845390,-1711.39,0.00019452,2]
[349891960,1737481845400,-500.0,0.00019452,2]
[349891961,1737481845409,-500.0,0.00019452,2]
[349891962,1737481845419,-503.78,0.00019452,2]
[349891963,1737481845428,-285.49711885,0.00019452,2]
[349891964,1737481845438,-715.38,0.00019452,2]
[349891965,1737481845447,-528.08656584,0.00019452,2]
[349891966,1737481845457,-1372.82,0.00019452,2]
[349891967,1737481845467,-635.31582746,0.00019452,2]
[349891968,1737481845478,-856.63,0.00019452,2]
[349891969,1737481845487,-578.87,0.00019452,2]
[349891970,1737481845497,-500.0,0.00019452,2]
[349891971,1737481845506,-500.0,0.00019452,2]
[349891972,1737481845515,-500.0,0.00019452,2]
[349891973,1737481845525,-503.35422246,0.00019452,2]
[349891974,1737481845534,-500.0,0.00019452,2]
[349891975,1737481845544,-500.0,0.00019452,2]
[349891976,1737481845554,-500.0,0.00019452,2]
[349891977,1737481845563,-500.0,0.00019452,2]
[349891978,1737481845572,-500.0,0.00019452,2]
[349891979,1737481845582,-500.0,0.00019452,2]
[349891980,1737481845594,-1804.88,0.00019452,2]
[349891981,1737481845602,-1825.15,0.00019452,2]
[349891982,1737481845613,-1270.88,0.00019452,2]
[349891983,1737481845622,-644.97,0.00019452,2]
[349891984,1737481845631,-500.0,0.00019452,2]
[349891985,1737481845641,-500.0,0.00019452,2]
[349891986,1737481845651,-701.52,0.00019452,2]
[349891987,1737481845660,-500.0,0.00019452,2]
[349891988,1737481845670,-500.0,0.00019452,2]
[349891989,1737481845682,-437.71,0.00019452,2]
[349891990,1737481845691,-3409.09926398,0.00019461,2]
[349891991,1737481845700,-666.92404713,0.00019489,2]
[349891992,1737481845710,-274.6899725,0.000195,2]
[349891993,1737481845719,-233.21,0.00019507,2]
[349891994,1737481845728,-211.87607278,0.00019521,2]
[349891995,1737481845738,-150.0,0.00019534,2]
[349891996,1737481845747,-150.0,0.00019534,2]
[349891997,1737481845757,-150.0,0.00019534,2]
[349891998,1737481845767,-300.0,0.00019534,2]
[349891999,1737481845776,-436.86,0.00019534,2]
[349892000,1737481845787,-2287.35429341,0.0001955,2]
[349892001,1737481845796,-211.87607278,0.00019624,2]
[349892002,1737481845806,-802.04049216,0.00019626,2]
[349892004,1737481845815,-666.92404713,0.00019626,2]
[349892006,1737481845825,-353.91185585,0.00019678,2]
[349892008,1737481845835,-3409.09926398,0.00019709,2]
[349892010,1737481845847,-4012.9,0.00019725,2]
[349892012,1737481845858,-1002.64,0.00019725,2]
[349892014,1737481845868,-4072.09,0.00019725,2]
[349892016,1737481845878,-500.0,0.00019725,2]
[349892018,1737481845887,-648.07,0.00019725,2]
[349892020,1737481845897,-547.32,0.00019725,2]
[349892022,1737481845906,-500.0,0.00019725,2]
[349892024,1737481845916,-804.02,0.00019725,2]
[349892026,1737481845926,-534.09,0.00019725,2]
[349892028,1737481845935,-620.7,0.00019725,2]
[349892030,1737481845945,-1154.97,0.00019725,2]
[349892032,1737481845954,-500.0,0.00019725,2]
[349892034,1737481845964,-669.6,0.00019725,2]
[349892037,1737481845974,-854.14,0.00019725,2]
[349892040,1737481845984,-502.54,0.00019725,2]
[349892042,1737481845994,-1320.45,0.00019725,2]
[349892047,1737481846004,-951.01,0.00019725,2]
[349892049,1737481846016,-955.19,0.00019725,2]
[349892051,1737481846026,-1101.88,0.00019725,2]
[349892053,1737481846036,-1101.88,0.00019725,2]
[349892055,1737481846046,-1101.88,0.00019725,2]
[349892056,1737481846056,-976.3,0.00019725,2]
[349892057,1737481846066,-1050.06,0.00019725,2]
[349892058,1737481846077,-964.72,0.00019725,2]
[349892060,1737481846087,-155.36434621,0.00019726,2]
[349892062,1737481846100,-500.0,0.00019726,2]
[349892063,1737481846110,-500.94,0.00019726,2]
[349892064,1737481846121,-500.0,0.00019726,2]
[349892065,1737481846131,-500.0,0.00019726,2]
[349892066,1737481846140,-500.0,0.00019726,2]
[349892067,1737481846151,-500.0,0.00019726,2]
[349892068,1737481846160,-500.0,0.00019726,2]
[349892069,1737481846170,-328.42730129,0.00019726,2]
[349892070,1737481846179,-500.0,0.00019726,2]
[349892071,1737481846189,-500.0,0.00019726,2]
[349892072,1737481846198,-259.35253388,0.00019726,2]
[349892073,1737481846208,-500.0,0.00019726,2]
[349892074,1737481846219,-500.0,0.00019726,2]
[349892075,1737481846229,-500.0,0.00019726,2]
[349892076,1737481846239,-500.0,0.00019726,2]
[349892077,1737481846248,-500.0,0.00019726,2]
[349892078,1737481846257,-500.0,0.00019726,2]
[349892079,1737481846268,-500.0,0.00019726,2]
[349892080,1737481846277,-500.0,0.00019726,2]
[349892081,1737481846287,-500.0,0.00019726,2]
[349892082,1737481846297,-500.0,0.00019726,2]
[349892083,1737481846308,-500.0,0.00019726,2]
[349892084,1737481846318,-510.01,0.00019726,2]
[349892085,1737481846329,-281.74184451,0.00019726,2]
[349892086,1737481846339,-500.0,0.00019726,2]
[349892087,1737481846353,-534.82,0.00019726,2]
[349892088,1737481846363,-500.0,0.00019726,2]
[349892089,1737481846372,-500.0,0.00019726,2]
[349892090,1737481846382,-500.0,0.00019726,2]
[349892091,1737481846391,-500.0,0.00019726,2]
[349892092,1737481846401,-500.0,0.00019726,2]
[349892093,1737481846410,-500.0,0.00019726,2]
[349892094,1737481846421,-500.0,0.00019726,2]
[349892095,1737481846430,-541.823232,0.00019726,2]
[349892096,1737481846440,-500.0,0.00019726,2]
[349892097,1737481846450,-500.0,0.00019726,2]
[349892098,1737481846459,-435.496355,0.00019726,2]
[349892099,1737481846469,-500.0,0.00019726,2]
[349892100,1737481846479,-419.97731489,0.00019726,2]
[349892101,1737481846489,-500.0,0.00019726,2]
[349892102,1737481846501,-500.0,0.00019726,2]
[349892103,1737481846511,-538.36,0.00019726,2]
[349892104,1737481846523,-500.0,0.00019726,2]
[349892105,1737481846532,-500.0,0.00019726,2]
[349892106,1737481846544,-371.70368211,0.00019726,2]
[349892107,1737481846553,-500.0,0.00019726,2]
[349892108,1737481846563,-290.31432447,0.00019726,2]
[349892109,1737481846573,-500.0,0.00019726,2]
[349892110,1737481846582,-574.42528812,0.00019726,2]
[349892111,1737481846591,-500.0,0.00019726,2]
[349892112,1737481846603,-500.0,0.00019726,2]
[349892113,1737481846612,-500.0,0.00019726,2]
[349892114,1737481846622,-500.0,0.00019726,2]
[349892115,1737481846632,-500.0,0.00019726,2]
[349892116,1737481846641,-500.0,0.00019726,2]
[349892117,1737481846651,-500.0,0.00019726,2]
[349892118,1737481846661,-500.0,0.00019726,2]
[349892119,1737481846671,-500.0,0.00019726,2]
[349892120,1737481846681,-500.0,0.00019726,2]
[349892121,1737481846693,-500.0,0.00019726,2]
[349892122,1737481846702,-500.0,0.00019726,2]
[349892123,1737481846712,-500.0,0.00019726,2]
[349892124,1737481846721,-500.0,0.00019726,2]
[349892125,1737481846731,-500.0,0.00019726,2]
[349892126,1737481846742,-500.0,0.00019726,2]
[349892127,1737481846751,-500.0,0.00019726,2]
[349892128,1737481846761,-500.0,0.00019726,2]
[349892129,1737481846773,-523.71,0.00019726,2]
[349892130,1737481846783,-506.36543386,0.00019726,2]
[349892131,1737481846792,-500.0,0.00019726,2]
[349892132,1737481846802,-500.0,0.00019726,2]
[349892133,1737481846811,-500.0,0.00019726,2]
[349892134,1737481846821,-500.0,0.00019726,2]
[349892135,1737481846830,-968.82,0.00019726,2]
[349892136,1737481846840,-883.82,0.00019726,2]
[349892137,1737481846852,-500.0,0.00019726,2]
[349892138,1737481846862,-574.82,0.00019726,2]
[349892139,1737481846872,-872.29,0.00019726,2]
[349892140,1737481846882,-591.16,0.00019726,2]
[349892141,1737481846891,-1949.9,0.00019726,2]
[349892142,1737481846901,-500.0,0.00019726,2]
[349892143,1737481846911,-500.0,0.00019726,2]
[349892144,1737481846921,-2083.72,0.00019726,2]
[349892145,1737481846930,-1234.26,0.00019726,2]
[349892146,1737481846940,-850.27,0.00019726,2]
[349892147,1737481846950,-638.37,0.00019726,2]
[349892148,1737481846960,-966.51,0.00019726,2]
[349892149,1737481846970,-500.0,0.00019726,2]
[349892150,1737481846980,-1807.38,0.00019726,2]
[349892151,1737481846990,-1229.07,0.00019726,2]
[349892152,1737481847000,-983.11,0.00019726,2]
[349892153,1737481847010,-1007.18,0.00019726,2]
[349892154,1737481847021,-438.72967266,0.00019726,2]
[349892155,1737481847032,-646.36,0.00019726,2]
[349892156,1737481847042,-500.0,0.00019726,2]
[349892157,1737481847051,-552.58,0.00019726,2]
[349892158,1737481847062,-500.0,0.00019726,2]
[349892159,1737481847073,-500.0,0.00019726,2]
[349892160,1737481847083,-1758.1,0.00019726,2]
[349892161,1737481847092,-758.32,0.00019726,2]
[349892162,1737481847104,-500.0,0.00019726,2]
[349892163,1737481847114,-2087.54,0.00019726,2]
[349892164,1737481847123,-552.04,0.00019726,2]
[349892165,1737481847132,-500.0,0.00019726,2]
[349892166,1737481847142,-568.77092965,0.00019726,2]
[349892167,1737481847153,-500.0,0.00019726,2]
[349892168,1737481847162,-814.49,0.00019726,2]
[349892169,1737481847172,-692.57,0.00019726,2]
[349892170,1737481847182,-500.0,0.00019726,2]
[349892171,1737481847191,-2087.16,0.00019726,2]
[349892172,1737481847201,-863.83,0.00019726,2]
[349892173,1737481847211,-777.16,0.00019726,2]
[349892174,1737481847221,-500.0,0.00019726,2]
[349892175,1737481847230,-620.39,0.00019726,2]
[349892176,1737481847240,-892.77,0.00019726,2]
[349892177,1737481847250,-1030.47,0.00019726,2]
[349892178,1737481847262,-573.28,0.00019726,2]
[349892179,1737481847271,-1860.97,0.00019726,2]
[349892180,1737481847281,-1428.91,0.00019726,2]
[349892181,1737481847291,-1602.47,0.00019726,2]
[349892182,1737481847301,-681.59,0.00019726,2]
[349892183,1737481847311,-992.99,0.00019726,2]
[349892184,1737481847320,-500.0,0.00019726,2]
[349892185,1737481847329,-500.0,0.00019726,2]
[349892186,1737481847339,-554.72,0.00019726,2]
[349892187,1737481847350,-860.54,0.00019726,2]
[349892188,1737481847359,-500.0,0.00019726,2]
[349892189,1737481847369,-939.91,0.00019726,2]
[349892190,1737481847379,-2768.13,0.00019726,2]
[349892191,1737481847388,-1656.07,0.00019726,2]
[349892192,1737481847398,-500.0,0.00019726,2]